[Event "Titled Tuesday Blitz May 11 2021"]
[White "Visakh N R"]
[Black "Srisshhhtea"]
[WhiteFideId "25012223"]
[WhiteElo "2428"]
[BlackElo "2413"]
[Result "1-0"]
[Round "01"]
[TimeControl "180+1"]
[Date "2021.05.11"]
[WhiteClock "0:00:08"]
[BlackClock "0:00:11"]

1. e4 {[%clk 0:02:58]}  e6 {[%clk 0:03:00]} 2. d4 {[%clk 0:02:55]}  d5 {[%clk 0:03:00]} 3. Nc3 {[%clk 0:02:54]}  Bb4 {[%clk 0:03:00]} 4. exd5 {[%clk 0:02:54]}  exd5 {[%clk 0:02:59]} 5. Bd3 {[%clk 0:02:53]}  Nf6 {[%clk 0:02:58]} 6. Ne2 {[%clk 0:02:53]}  O-O {[%clk 0:02:57]} 7. O-O {[%clk 0:02:53]}  c6 {[%clk 0:02:56]} 8. h3 {[%clk 0:02:51]}  Re8 {[%clk 0:02:54]} 9. Bf4 {[%clk 0:02:50]}  Bd6 {[%clk 0:02:46]} 10. Qd2 {[%clk 0:02:48]}  Bxf4 {[%clk 0:02:35]} 11. Qxf4 {[%clk 0:02:45]}  Nbd7 {[%clk 0:02:36]} 12. Rae1 {[%clk 0:02:17]}  Nf8 {[%clk 0:02:34]} 13. Qd2 {[%clk 0:02:16]}  Ne6 {[%clk 0:02:25]} 14. Bf5 {[%clk 0:02:10]}  Nf8 {[%clk 0:02:21]} 15. Ng3 {[%clk 0:02:06]}  Ng6 {[%clk 0:02:19]} 16. Rxe8+ {[%clk 0:02:02]}  Nxe8 {[%clk 0:02:15]} 17. Re1 {[%clk 0:02:00]}  Nd6 {[%clk 0:02:15]} 18. Bd3 {[%clk 0:01:59]}  Bd7 {[%clk 0:02:04]} 19. Nce2 {[%clk 0:01:58]}  Qh4 {[%clk 0:02:00]} 20. Kh2 {[%clk 0:01:30]}  Re8 {[%clk 0:01:56]} 21. c3 {[%clk 0:01:14]}  Kf8 {[%clk 0:01:41]} 22. Ng1 {[%clk 0:01:11]}  Rxe1 {[%clk 0:01:20]} 23. Qxe1 {[%clk 0:01:12]}  Nf4 {[%clk 0:01:19]} 24. Qe5 {[%clk 0:01:07]}  Nxd3 {[%clk 0:01:05]} 25. Qxd6+ {[%clk 0:01:06]}  Qe7 {[%clk 0:01:06]} 26. Qb8+ {[%clk 0:01:03]}  Be8 {[%clk 0:01:00]} 27. Nf3 {[%clk 0:00:27]}  g6 {[%clk 0:00:52]} 28. Ne5 {[%clk 0:00:21]}  Nxf2 {[%clk 0:00:44]} 29. Qxa7 {[%clk 0:00:20]}  f6 {[%clk 0:00:39]} 30. Nf3 {[%clk 0:00:18]}  Nd3 {[%clk 0:00:38]} 31. Qb8 {[%clk 0:00:12]}  Nxb2 {[%clk 0:00:34]} 32. Qf4 {[%clk 0:00:12]}  Nc4 {[%clk 0:00:30]} 33. h4 {[%clk 0:00:11]}  Kg7 {[%clk 0:00:28]} 34. h5 {[%clk 0:00:10]}  Qe3 {[%clk 0:00:26]} 35. Qc7+ {[%clk 0:00:09]}  Bf7 {[%clk 0:00:23]} 36. Qxb7 {[%clk 0:00:06]}  Qxc3 {[%clk 0:00:20]} 37. h6+ {[%clk 0:00:05]}  Kf8 {[%clk 0:00:17]} 38. Qc8+ {[%clk 0:00:04]}  Be8 {[%clk 0:00:17]} 39. Qe6 {[%clk 0:00:05]}  Qb4 {[%clk 0:00:11]} 40. Qxf6+ {[%clk 0:00:04]}  Bf7 {[%clk 0:00:12]} 41. Ng5 {[%clk 0:00:04]}  Qe7 {[%clk 0:00:11]} 42. Nxh7+ {[%clk 0:00:04]}  Ke8 {[%clk 0:00:11]} 43. Qh8+ {[%clk 0:00:04]}  Kd7 {[%clk 0:00:10]} 44. Nf6+ {[%clk 0:00:04]}  Kc7 {[%clk 0:00:10]} 45. h7 {[%clk 0:00:04]}  Nd6 {[%clk 0:00:09]} 46. Qg7 {[%clk 0:00:04]}  Nf5 {[%clk 0:00:05]} 47. Nxf5 {[%clk 0:00:04]}  gxf5 {[%clk 0:00:06]} 48. h8=Q {[%clk 0:00:04]}  Qd6+ {[%clk 0:00:07]} 49. Qg3 {[%clk 0:00:03]}  Qxg3+ {[%clk 0:00:07]} 50. Kxg3 {[%clk 0:00:03]}  Kb6 {[%clk 0:00:07]} 51. Kf4 {[%clk 0:00:04]}  Kb5 {[%clk 0:00:08]} 52. Ke5 {[%clk 0:00:05]}  Kc4 {[%clk 0:00:09]} 53. Nd7 {[%clk 0:00:06]}  Kc3 {[%clk 0:00:09]} 54. Nc5 {[%clk 0:00:07]}  Kb2 {[%clk 0:00:10]} 55. Qh4 {[%clk 0:00:07]}  Kxa2 {[%clk 0:00:11]} 56. Qf2+ {[%clk 0:00:08]} 1-0


[Site "https://www.chess.com"]

[Event "Titled Tuesday Blitz May 11 2021"]
[White "Volkov, Maksim"]
[Black "Timmermans, Mark"]
[WhiteFideId "54123070"]
[BlackFideId "1026399"]
[WhiteElo "2113"]
[BlackElo "2460"]
[Result "0-1"]
[Round "01"]
[TimeControl "180+1"]
[Date "2021.05.11"]
[WhiteClock "0:00:59"]
[BlackClock "0:01:21"]

1. d4 {[%clk 0:02:59]}  Nf6 {[%clk 0:02:58]} 2. c4 {[%clk 0:02:59]}  e6 {[%clk 0:02:58]} 3. Nf3 {[%clk 0:02:58]}  d5 {[%clk 0:02:58]} 4. g3 {[%clk 0:02:58]}  dxc4 {[%clk 0:02:58]} 5. Bg2 {[%clk 0:02:57]}  Be7 {[%clk 0:02:57]} 6. O-O {[%clk 0:02:57]}  O-O {[%clk 0:02:58]} 7. Ne5 {[%clk 0:02:53]}  Nc6 {[%clk 0:02:56]} 8. Nxc6 {[%clk 0:02:45]}  bxc6 {[%clk 0:02:57]} 9. Bxc6 {[%clk 0:02:45]}  Rb8 {[%clk 0:02:57]} 10. Nc3 {[%clk 0:02:41]}  Nd5 {[%clk 0:02:45]} 11. Qa4 {[%clk 0:02:19]}  Nb6 {[%clk 0:02:37]} 12. Qxa7 {[%clk 0:02:12]}  Bd7 {[%clk 0:02:37]} 13. Bg2 {[%clk 0:02:11]}  c6 {[%clk 0:01:58]} 14. Bf4 {[%clk 0:02:01]}  Ra8 {[%clk 0:01:38]} 15. Qb7 {[%clk 0:01:59]}  Nd5 {[%clk 0:01:36]} 16. Bxd5 {[%clk 0:01:47]}  cxd5 {[%clk 0:01:37]} 17. e4 {[%clk 0:01:26]}  g5 {[%clk 0:01:35]} 18. Be5 {[%clk 0:01:21]}  f6 {[%clk 0:01:32]} 19. Bc7 {[%clk 0:01:21]}  Qc8 {[%clk 0:01:32]} 20. Qxc8 {[%clk 0:01:19]}  Rfxc8 {[%clk 0:01:33]} 21. Bb6 {[%clk 0:01:18]}  Rcb8 {[%clk 0:01:29]} 22. Bc5 {[%clk 0:01:07]}  Bxc5 {[%clk 0:01:29]} 23. dxc5 {[%clk 0:01:08]}  d4 {[%clk 0:01:30]} 24. Ne2 {[%clk 0:01:07]}  e5 {[%clk 0:01:26]} 25. Rfb1 {[%clk 0:01:04]}  Bg4 {[%clk 0:01:25]} 26. Kf1 {[%clk 0:01:03]}  Bf3 {[%clk 0:01:25]} 27. Rc1 {[%clk 0:00:59]}  Rxb2 {[%clk 0:01:22]} 28. Ng1 {[%clk 0:00:59]}  Bxe4 {[%clk 0:01:21]} 0-1


[Site "https://www.chess.com"]

[Event "Titled Tuesday Blitz May 11 2021"]
[White "Walentukiewicz, Michal"]
[Black "Pakleza, Zbigniew"]
[WhiteFideId "1126903"]
[BlackFideId "1119290"]
[WhiteElo "1974"]
[BlackElo "2526"]
[Result "0-1"]
[Round "01"]
[TimeControl "180+1"]
[Date "2021.05.11"]
[WhiteClock "0:01:23"]
[BlackClock "0:00:52"]

1. g3 {[%clk 0:02:55]}  d5 {[%clk 0:02:59]} 2. Bg2 {[%clk 0:02:55]}  Nf6 {[%clk 0:02:59]} 3. c4 {[%clk 0:02:55]}  c6 {[%clk 0:02:59]} 4. cxd5 {[%clk 0:02:55]}  cxd5 {[%clk 0:02:59]} 5. Nf3 {[%clk 0:02:55]}  Nc6 {[%clk 0:02:59]} 6. O-O {[%clk 0:02:56]}  Bf5 {[%clk 0:02:59]} 7. d3 {[%clk 0:02:57]}  e6 {[%clk 0:03:00]} 8. Nc3 {[%clk 0:02:57]}  Be7 {[%clk 0:03:00]} 9. Qa4 {[%clk 0:02:57]}  O-O {[%clk 0:02:59]} 10. e4 {[%clk 0:02:57]}  Bg6 {[%clk 0:02:58]} 11. Nh4 {[%clk 0:02:57]}  d4 {[%clk 0:02:56]} 12. Nxg6 {[%clk 0:02:57]}  hxg6 {[%clk 0:02:56]} 13. Ne2 {[%clk 0:02:57]}  e5 {[%clk 0:02:39]} 14. Bg5 {[%clk 0:02:55]}  Nd7 {[%clk 0:02:35]} 15. Bxe7 {[%clk 0:02:54]}  Qxe7 {[%clk 0:02:35]} 16. Rac1 {[%clk 0:02:51]}  Rac8 {[%clk 0:02:21]} 17. Bh3 {[%clk 0:02:50]}  Rc7 {[%clk 0:02:14]} 18. Bxd7 {[%clk 0:02:48]}  Qxd7 {[%clk 0:02:13]} 19. Rc5 {[%clk 0:02:40]}  Rfc8 {[%clk 0:01:53]} 20. Rfc1 {[%clk 0:02:37]}  Qg4 {[%clk 0:01:43]} 21. Qd1 {[%clk 0:02:23]}  b6 {[%clk 0:01:31]} 22. R5c2 {[%clk 0:02:21]}  Qd7 {[%clk 0:01:27]} 23. Kg2 {[%clk 0:02:20]}  Nb4 {[%clk 0:01:22]} 24. Rxc7 {[%clk 0:02:20]}  Rxc7 {[%clk 0:01:23]} 25. a3 {[%clk 0:02:16]}  Rxc1 {[%clk 0:01:12]} 26. Nxc1 {[%clk 0:02:14]}  Na6 {[%clk 0:01:10]} 27. Qc2 {[%clk 0:02:11]}  Nc5 {[%clk 0:01:07]} 28. b4 {[%clk 0:02:07]}  Ne6 {[%clk 0:01:05]} 29. Nb3 {[%clk 0:01:57]}  Qc7 {[%clk 0:01:00]} 30. Qxc7 {[%clk 0:01:56]}  Nxc7 {[%clk 0:01:01]} 31. a4 {[%clk 0:01:53]}  Kf8 {[%clk 0:01:01]} 32. f4 {[%clk 0:01:52]}  f6 {[%clk 0:01:02]} 33. Kf3 {[%clk 0:01:49]}  Ke7 {[%clk 0:01:00]} 34. fxe5 {[%clk 0:01:41]}  fxe5 {[%clk 0:01:01]} 35. Kg4 {[%clk 0:01:42]}  Kf6 {[%clk 0:00:59]} 36. Nd2 {[%clk 0:01:40]}  Na6 {[%clk 0:00:56]} 37. b5 {[%clk 0:01:24]}  Nc5 {[%clk 0:00:54]} 38. a5 {[%clk 0:01:23]}  bxa5 {[%clk 0:00:52]} 39. Nc4 {[%clk 0:01:23]}  a4 {[%clk 0:00:52]} 0-1


[Site "https://www.chess.com"]

[Event "Titled Tuesday Blitz May 11 2021"]
[White "Yirik, Volkan"]
[Black "Demchenko, Anton"]
[WhiteFideId "6300782"]
[BlackFideId "4160258"]
[WhiteElo "2457"]
[BlackElo "2593"]
[Result "0-1"]
[Round "01"]
[TimeControl "180+1"]
[Date "2021.05.11"]
[WhiteClock "0:00:32"]
[BlackClock "0:00:09"]

1. e4 {[%clk 0:02:58]}  e5 {[%clk 0:02:58]} 2. Nf3 {[%clk 0:02:57]}  Nc6 {[%clk 0:02:58]} 3. Nc3 {[%clk 0:02:58]}  Nf6 {[%clk 0:02:57]} 4. d4 {[%clk 0:02:58]}  exd4 {[%clk 0:02:58]} 5. Nxd4 {[%clk 0:02:58]}  Bb4 {[%clk 0:02:59]} 6. Nxc6 {[%clk 0:02:59]}  bxc6 {[%clk 0:03:00]} 7. Bd3 {[%clk 0:02:59]}  O-O {[%clk 0:03:00]} 8. O-O {[%clk 0:02:59]}  Re8 {[%clk 0:03:01]} 9. Bg5 {[%clk 0:02:54]}  h6 {[%clk 0:03:00]} 10. Bh4 {[%clk 0:02:54]}  g5 {[%clk 0:03:00]} 11. Bg3 {[%clk 0:02:54]}  Bxc3 {[%clk 0:03:01]} 12. bxc3 {[%clk 0:02:54]}  Nxe4 {[%clk 0:03:02]} 13. Qh5 {[%clk 0:02:54]}  d6 {[%clk 0:03:02]} 14. f4 {[%clk 0:02:45]}  Bf5 {[%clk 0:03:01]} 15. Qxh6 {[%clk 0:02:40]}  Re6 {[%clk 0:02:41]} 16. Qh5 {[%clk 0:02:35]}  Bg6 {[%clk 0:02:38]} 17. Qd1 {[%clk 0:02:22]}  f5 {[%clk 0:02:23]} 18. Bxe4 {[%clk 0:02:17]}  Rxe4 {[%clk 0:02:21]} 19. fxg5 {[%clk 0:02:18]}  Qxg5 {[%clk 0:02:22]} 20. Qf3 {[%clk 0:02:12]}  Qe3+ {[%clk 0:02:13]} 21. Qxe3 {[%clk 0:02:09]}  Rxe3 {[%clk 0:02:14]} 22. Rf2 {[%clk 0:02:06]}  Rxc3 {[%clk 0:02:01]} 23. Re1 {[%clk 0:02:01]}  Rf8 {[%clk 0:02:00]} 24. Bh4 {[%clk 0:01:49]}  Ra3 {[%clk 0:01:45]} 25. Re6 {[%clk 0:01:41]}  Kg7 {[%clk 0:01:37]} 26. Rf3 {[%clk 0:01:33]}  Rxf3 {[%clk 0:01:30]} 27. gxf3 {[%clk 0:01:33]}  f4 {[%clk 0:01:20]} 28. c3 {[%clk 0:01:20]}  Rb8 {[%clk 0:01:04]} 29. Re7+ {[%clk 0:01:18]}  Kh6 {[%clk 0:01:04]} 30. Rxc7 {[%clk 0:01:16]}  Rb1+ {[%clk 0:01:05]} 31. Kf2 {[%clk 0:01:10]}  Rb2+ {[%clk 0:01:05]} 32. Kg1 {[%clk 0:01:11]}  Rxa2 {[%clk 0:00:58]} 33. Rxc6 {[%clk 0:01:10]}  a5 {[%clk 0:00:59]} 34. Rxd6 {[%clk 0:01:07]}  a4 {[%clk 0:00:59]} 35. Ra6 {[%clk 0:01:06]}  Kh7 {[%clk 0:00:48]} 36. Bf6 {[%clk 0:01:01]}  Bh5 {[%clk 0:00:47]} 37. Bg5 {[%clk 0:00:56]}  Bxf3 {[%clk 0:00:46]} 38. Bxf4 {[%clk 0:00:57]}  Be2 {[%clk 0:00:32]} 39. Ra7+ {[%clk 0:00:54]}  Kg6 {[%clk 0:00:32]} 40. Bd6 {[%clk 0:00:53]}  Bd1 {[%clk 0:00:30]} 41. Re7 {[%clk 0:00:44]}  Rd2 {[%clk 0:00:29]} 42. Bb4 {[%clk 0:00:41]}  Bb3 {[%clk 0:00:29]} 43. h4 {[%clk 0:00:38]}  Ra2 {[%clk 0:00:24]} 44. Re5 {[%clk 0:00:37]}  a3 {[%clk 0:00:22]} 45. Ra5 {[%clk 0:00:37]}  Ra1+ {[%clk 0:00:21]} 46. Kf2 {[%clk 0:00:37]}  a2 {[%clk 0:00:22]} 47. Kg2 {[%clk 0:00:35]}  Rb1 {[%clk 0:00:21]} 48. h5+ {[%clk 0:00:31]}  Kf7 {[%clk 0:00:20]} 49. h6 {[%clk 0:00:29]}  a1=Q {[%clk 0:00:20]} 50. Rxa1 {[%clk 0:00:29]}  Rxa1 {[%clk 0:00:21]} 51. c4 {[%clk 0:00:26]}  Kg6 {[%clk 0:00:16]} 52. c5 {[%clk 0:00:23]}  Kxh6 {[%clk 0:00:16]} 53. c6 {[%clk 0:00:24]}  Bd5+ {[%clk 0:00:15]} 54. Kg3 {[%clk 0:00:24]}  Bxc6 {[%clk 0:00:16]} 55. Kf4 {[%clk 0:00:25]}  Ra4 {[%clk 0:00:15]} 56. Ke5 {[%clk 0:00:25]}  Rxb4 {[%clk 0:00:16]} 57. Kd6 {[%clk 0:00:26]}  Bf3 {[%clk 0:00:15]} 58. Kc5 {[%clk 0:00:27]}  Re4 {[%clk 0:00:15]} 59. Kd5 {[%clk 0:00:27]}  Kg5 {[%clk 0:00:16]} 60. Kd6 {[%clk 0:00:28]}  Kf5 {[%clk 0:00:17]} 61. Kd5 {[%clk 0:00:28]}  Rf4+ {[%clk 0:00:17]} 62. Kc5 {[%clk 0:00:29]}  Bg4 {[%clk 0:00:17]} 63. Kd5 {[%clk 0:00:30]}  Re4 {[%clk 0:00:17]} 64. Kd6 {[%clk 0:00:30]}  Re5 {[%clk 0:00:17]} 65. Kc6 {[%clk 0:00:31]}  Ke4 {[%clk 0:00:17]} 66. Kd6 {[%clk 0:00:32]}  Kd4 {[%clk 0:00:17]} 67. Kc6 {[%clk 0:00:33]}  Rd5 {[%clk 0:00:17]} 68. Kc7 {[%clk 0:00:33]}  Bh5 {[%clk 0:00:17]} 69. Kc6 {[%clk 0:00:34]}  Bd1 {[%clk 0:00:17]} 70. Kc7 {[%clk 0:00:35]}  Be2 {[%clk 0:00:18]} 71. Kc6 {[%clk 0:00:36]}  Bg4 {[%clk 0:00:17]} 72. Kb6 {[%clk 0:00:37]}  Rc5 {[%clk 0:00:17]} 73. Kb7 {[%clk 0:00:37]}  Kd5 {[%clk 0:00:17]} 74. Kb6 {[%clk 0:00:38]}  Kd6 {[%clk 0:00:18]} 75. Ka6 {[%clk 0:00:39]}  Kc7 {[%clk 0:00:12]} 76. Ka7 {[%clk 0:00:37]}  Bh5 {[%clk 0:00:11]} 77. Ka6 {[%clk 0:00:30]}  Bg6 {[%clk 0:00:11]} 78. Ka7 {[%clk 0:00:30]}  Bf7 {[%clk 0:00:11]} 79. Ka6 {[%clk 0:00:29]}  Be8 {[%clk 0:00:11]} 80. Ka7 {[%clk 0:00:30]}  Rg5 {[%clk 0:00:08]} 81. Ka6 {[%clk 0:00:31]}  Rh5 {[%clk 0:00:08]} 82. Ka7 {[%clk 0:00:32]}  Ra5# {[%clk 0:00:09]} 0-1


[Site "https://www.chess.com"]

[Event "Titled Tuesday Blitz May 11 2021"]
[White "Zhigalko, Sergei"]
[Black "Zhou, Yang-Fan"]
[WhiteFideId "13502956"]
[BlackFideId "468584"]
[WhiteElo "2662"]
[BlackElo "2456"]
[Result "1-0"]
[Round "01"]
[TimeControl "180+1"]
[Date "2021.05.11"]
[WhiteClock "0:00:07"]
[BlackClock "0:00:01"]

1. e4 {[%clk 0:03:00]}  c5 {[%clk 0:02:59]} 2. Nf3 {[%clk 0:03:00]}  d6 {[%clk 0:02:59]} 3. d4 {[%clk 0:03:00]}  Nf6 {[%clk 0:03:00]} 4. Nc3 {[%clk 0:03:00]}  cxd4 {[%clk 0:03:00]} 5. Qxd4 {[%clk 0:03:01]}  a6 {[%clk 0:02:59]} 6. Bc4 {[%clk 0:03:01]}  Nc6 {[%clk 0:02:59]} 7. Qd3 {[%clk 0:03:01]}  e6 {[%clk 0:02:59]} 8. Bf4 {[%clk 0:03:01]}  h6 {[%clk 0:02:35]} 9. O-O-O {[%clk 0:02:55]}  e5 {[%clk 0:02:34]} 10. Bg3 {[%clk 0:02:38]}  Be7 {[%clk 0:02:32]} 11. Bh4 {[%clk 0:02:33]}  Be6 {[%clk 0:01:53]} 12. Bxf6 {[%clk 0:02:31]}  gxf6 {[%clk 0:01:53]} 13. Bb3 {[%clk 0:02:21]}  Rc8 {[%clk 0:01:49]} 14. Kb1 {[%clk 0:02:21]}  Rg8 {[%clk 0:01:42]} 15. g3 {[%clk 0:02:17]}  Qa5 {[%clk 0:01:36]} 16. Nd5 {[%clk 0:02:14]}  Bd8 {[%clk 0:00:56]} 17. Qe3 {[%clk 0:02:03]}  h5 {[%clk 0:00:47]} 18. Qh6 {[%clk 0:01:46]}  Rg6 {[%clk 0:00:19]} 19. Qxh5 {[%clk 0:01:28]}  Bg4 {[%clk 0:00:15]} 20. Qh8+ {[%clk 0:01:27]}  Kd7 {[%clk 0:00:15]} 21. Qh7 {[%clk 0:00:38]}  Bxf3 {[%clk 0:00:11]} 22. Qxf7+ {[%clk 0:00:38]}  Ne7 {[%clk 0:00:10]} 23. Nxe7 {[%clk 0:00:33]}  Bxe7 {[%clk 0:00:10]} 24. Qxg6 {[%clk 0:00:25]}  Bxh1 {[%clk 0:00:09]} 25. Rxh1 {[%clk 0:00:20]}  Kc7 {[%clk 0:00:09]} 26. Qf7 {[%clk 0:00:20]}  Kd8 {[%clk 0:00:06]} 27. h4 {[%clk 0:00:16]}  Qc5 {[%clk 0:00:05]} 28. h5 {[%clk 0:00:13]}  Qxf2 {[%clk 0:00:05]} 29. h6 {[%clk 0:00:13]}  Qf3 {[%clk 0:00:05]} 30. Rc1 {[%clk 0:00:10]}  Qxg3 {[%clk 0:00:02]} 31. h7 {[%clk 0:00:09]}  Qh4 {[%clk 0:00:02]} 32. Be6 {[%clk 0:00:08]}  Rb8 {[%clk 0:00:02]} 33. Qg7 {[%clk 0:00:07]}  Qh2 {[%clk 0:00:01]} 34. h8=Q+ {[%clk 0:00:07]}  Kc7 {[%clk 0:00:01]} 1-0


[Site "https://www.chess.com"]

[Event "Titled Tuesday Blitz May 11 2021"]
[White "Zia, Tahsin Tajwar"]
[Black "Bluebaum, Matthias"]
[WhiteFideId "10211888"]
[BlackFideId "24651516"]
[WhiteElo "1800"]
[BlackElo "2685"]
[Result "0-1"]
[Round "01"]
[TimeControl "180+1"]
[Date "2021.05.11"]
[WhiteClock "0:00:04"]
[BlackClock "0:00:17"]

1. d4 {[%clk 0:03:00]}  Nf6 {[%clk 0:02:59]} 2. Bf4 {[%clk 0:03:00]}  d5 {[%clk 0:03:00]} 3. e3 {[%clk 0:02:59]}  c5 {[%clk 0:03:00]} 4. Nf3 {[%clk 0:02:59]}  Nc6 {[%clk 0:03:00]} 5. Nbd2 {[%clk 0:02:58]}  cxd4 {[%clk 0:03:00]} 6. exd4 {[%clk 0:02:58]}  Qb6 {[%clk 0:03:01]} 7. Nb3 {[%clk 0:02:57]}  Bf5 {[%clk 0:03:01]} 8. Bd3 {[%clk 0:02:50]}  Bxd3 {[%clk 0:02:59]} 9. Qxd3 {[%clk 0:02:51]}  e6 {[%clk 0:03:00]} 10. c3 {[%clk 0:02:51]}  a5 {[%clk 0:03:00]} 11. O-O {[%clk 0:02:46]}  a4 {[%clk 0:02:58]} 12. Nbd2 {[%clk 0:02:45]}  Be7 {[%clk 0:02:54]} 13. Ne5 {[%clk 0:02:38]}  O-O {[%clk 0:02:54]} 14. Rab1 {[%clk 0:02:28]}  Rfc8 {[%clk 0:02:51]} 15. Rfe1 {[%clk 0:02:28]}  Qa6 {[%clk 0:02:47]} 16. Qg3 {[%clk 0:02:19]}  Nh5 {[%clk 0:02:29]} 17. Qf3 {[%clk 0:02:12]}  Nxf4 {[%clk 0:02:29]} 18. Qxf4 {[%clk 0:02:13]}  Nxe5 {[%clk 0:02:30]} 19. Qxe5 {[%clk 0:02:00]}  a3 {[%clk 0:02:28]} 20. Re3 {[%clk 0:01:50]}  Bd6 {[%clk 0:02:06]} 21. Qg5 {[%clk 0:01:37]}  axb2 {[%clk 0:01:54]} 22. Rxb2 {[%clk 0:01:32]}  Qa3 {[%clk 0:01:44]} 23. Rxb7 {[%clk 0:01:10]}  Rxc3 {[%clk 0:00:59]} 24. Qh5 {[%clk 0:00:29]}  Bc7 {[%clk 0:00:40]} 25. Nf1 {[%clk 0:00:09]}  Rxe3 {[%clk 0:00:32]} 26. fxe3 {[%clk 0:00:06]}  Qd6 {[%clk 0:00:27]} 27. Qe2 {[%clk 0:00:04]}  g6 {[%clk 0:00:25]} 28. Qc2 {[%clk 0:00:04]}  Bd8 {[%clk 0:00:24]} 29. Qb3 {[%clk 0:00:04]}  Bg5 {[%clk 0:00:24]} 30. g3 {[%clk 0:00:03]}  Ra3 {[%clk 0:00:24]} 31. Qb4 {[%clk 0:00:03]}  Qxb4 {[%clk 0:00:19]} 32. Rxb4 {[%clk 0:00:03]}  Bxe3+ {[%clk 0:00:17]} 33. Nxe3 {[%clk 0:00:04]}  Rxe3 {[%clk 0:00:18]} 34. Kf2 {[%clk 0:00:03]}  Ra3 {[%clk 0:00:18]} 35. Rb2 {[%clk 0:00:03]}  Kg7 {[%clk 0:00:19]} 36. Ke2 {[%clk 0:00:03]}  Kf6 {[%clk 0:00:20]} 37. Kd2 {[%clk 0:00:02]}  Kf5 {[%clk 0:00:20]} 38. Kc2 {[%clk 0:00:03]}  Ke4 {[%clk 0:00:21]} 39. Kb1 {[%clk 0:00:04]}  Kxd4 {[%clk 0:00:20]} 40. Rb7 {[%clk 0:00:04]}  Rf3 {[%clk 0:00:20]} 41. a4 {[%clk 0:00:04]}  e5 {[%clk 0:00:18]} 42. Kb2 {[%clk 0:00:04]}  e4 {[%clk 0:00:17]} 43. a5 {[%clk 0:00:04]}  Rf6 {[%clk 0:00:16]} 44. Rb6 {[%clk 0:00:04]}  Rf2+ {[%clk 0:00:12]} 45. Kb3 {[%clk 0:00:02]}  e3 {[%clk 0:00:13]} 46. Rb8 {[%clk 0:00:01]}  e2 {[%clk 0:00:13]} 47. Re8 {[%clk 0:00:02]}  Rf3+ {[%clk 0:00:14]} 48. Kb4 {[%clk 0:00:02]}  Re3 {[%clk 0:00:15]} 49. Rxe3 {[%clk 0:00:02]}  Kxe3 {[%clk 0:00:16]} 50. a6 {[%clk 0:00:03]}  e1=Q+ {[%clk 0:00:17]} 51. Kb5 {[%clk 0:00:04]}  Qf1+ {[%clk 0:00:17]} 0-1


[Site "https://www.chess.com"]

[Event "Titled Tuesday Blitz May 11 2021"]
[White "Zubov, Alexander"]
[Black "Degenbaev, Aziz"]
[WhiteFideId "14109409"]
[BlackFideId "13802640"]
[WhiteElo "2740"]
[BlackElo "1932"]
[Result "1-0"]
[Round "01"]
[TimeControl "180+1"]
[Date "2021.05.11"]
[WhiteClock "0:00:09"]
[BlackClock "0:00:17"]

1. d4 {[%clk 0:02:59]}  f5 {[%clk 0:02:57]} 2. Nc3 {[%clk 0:02:58]}  Nf6 {[%clk 0:02:57]} 3. Bg5 {[%clk 0:02:58]}  d5 {[%clk 0:02:57]} 4. e3 {[%clk 0:02:57]}  e6 {[%clk 0:02:56]} 5. Nf3 {[%clk 0:02:56]}  Bd6 {[%clk 0:02:55]} 6. Bd3 {[%clk 0:02:54]}  O-O {[%clk 0:02:55]} 7. O-O {[%clk 0:02:54]}  c6 {[%clk 0:02:54]} 8. Ne2 {[%clk 0:02:43]}  h6 {[%clk 0:02:53]} 9. Bf4 {[%clk 0:02:43]}  Be7 {[%clk 0:02:53]} 10. Ne5 {[%clk 0:02:39]}  g5 {[%clk 0:02:50]} 11. Bg3 {[%clk 0:02:39]}  Qe8 {[%clk 0:02:47]} 12. f3 {[%clk 0:02:30]}  Nbd7 {[%clk 0:02:45]} 13. c4 {[%clk 0:02:30]}  Nxe5 {[%clk 0:02:42]} 14. dxe5 {[%clk 0:02:15]}  Nd7 {[%clk 0:02:35]} 15. f4 {[%clk 0:02:13]}  g4 {[%clk 0:02:34]} 16. Nd4 {[%clk 0:02:09]}  Nc5 {[%clk 0:02:31]} 17. Rc1 {[%clk 0:02:06]}  b6 {[%clk 0:02:27]} 18. cxd5 {[%clk 0:01:45]}  cxd5 {[%clk 0:02:22]} 19. Be2 {[%clk 0:01:37]}  Bd7 {[%clk 0:02:18]} 20. a3 {[%clk 0:01:32]}  Rc8 {[%clk 0:02:16]} 21. b4 {[%clk 0:01:29]}  Ne4 {[%clk 0:02:14]} 22. Ba6 {[%clk 0:01:28]}  Rc3 {[%clk 0:02:05]} 23. Rxc3 {[%clk 0:01:25]}  Nxc3 {[%clk 0:02:04]} 24. Qd3 {[%clk 0:01:25]}  Ne4 {[%clk 0:02:03]} 25. Rc1 {[%clk 0:01:25]}  h5 {[%clk 0:01:59]} 26. Rc7 {[%clk 0:01:20]}  h4 {[%clk 0:01:58]} 27. Be1 {[%clk 0:01:19]}  h3 {[%clk 0:01:56]} 28. g3 {[%clk 0:01:19]}  Kf7 {[%clk 0:01:09]} 29. Rxa7 {[%clk 0:01:13]}  Ba4 {[%clk 0:01:08]} 30. Bb5 {[%clk 0:00:55]}  Bxb5 {[%clk 0:01:05]} 31. Qxb5 {[%clk 0:00:55]}  Qc8 {[%clk 0:01:00]} 32. Qc6 {[%clk 0:00:45]}  Qb8 {[%clk 0:00:57]} 33. Qd7 {[%clk 0:00:40]}  Re8 {[%clk 0:00:51]} 34. Nc6 {[%clk 0:00:39]}  Qc8 {[%clk 0:00:50]} 35. Qxc8 {[%clk 0:00:33]}  Rxc8 {[%clk 0:00:51]} 36. b5 {[%clk 0:00:30]}  Kf8 {[%clk 0:00:43]} 37. Kf1 {[%clk 0:00:18]}  Bc5 {[%clk 0:00:41]} 38. Ke2 {[%clk 0:00:18]}  Ke8 {[%clk 0:00:35]} 39. a4 {[%clk 0:00:18]}  Bf8 {[%clk 0:00:35]} 40. a5 {[%clk 0:00:16]}  bxa5 {[%clk 0:00:32]} 41. Bxa5 {[%clk 0:00:16]}  Nc5 {[%clk 0:00:30]} 42. Bb4 {[%clk 0:00:14]}  Nd7 {[%clk 0:00:18]} 43. Bxf8 {[%clk 0:00:13]}  Nxf8 {[%clk 0:00:19]} 44. Kd3 {[%clk 0:00:11]}  Nd7 {[%clk 0:00:18]} 45. Kd4 {[%clk 0:00:11]}  Nb6 {[%clk 0:00:18]} 46. Kc5 {[%clk 0:00:11]}  Nd7+ {[%clk 0:00:18]} 47. Kd6 {[%clk 0:00:10]}  Nb6 {[%clk 0:00:18]} 48. Kxe6 {[%clk 0:00:10]}  d4 {[%clk 0:00:17]} 49. exd4 {[%clk 0:00:09]}  Nc4 {[%clk 0:00:17]} 50. Rh7 {[%clk 0:00:09]} 1-0


[Site "https://www.chess.com"]